[Event "LM 2019"]
[Site "Linköping, Sweden"]
[Date "2019.02.05"]
[Round "3.1"]
[White "Garner, Mårten"]
[Black "Janse, Love"]
[Result "0-1"]
[TimeControl "90 min + 30 sec/move"]
[WhiteElo "1907"]
[BlackElo "2187"]

1. d4 {[%clk 01:30:57]} {[%emt 00:00:02]} f5 {[%clk 01:30:59]} {[%emt
00:00:01]} 2. Bg5 {[%clk 01:31:05]} {[%emt 00:00:21]} h6 {[%clk 01:31:27]}
{[%emt 00:00:02]} 3. Bh4 {[%clk 01:31:18]} {[%emt 00:00:16]} g5 {[%clk
01:31:56]} {[%emt 00:00:02]} 4. e3 {[%clk 01:31:33]} {[%emt 00:00:14]} Nf6
{[%clk 01:32:24]} {[%emt 00:00:03]} 5. Bg3 {[%clk 01:31:58]} {[%emt 00:00:05]}
d6 {[%clk 01:32:51]} {[%emt 00:00:04]} 6. h4 {[%clk 01:32:21]} {[%emt
00:00:06]} g4 {[%clk 01:33:19]} {[%emt 00:00:02]} 7. Bd3 {[%clk 01:32:41]}
{[%emt 00:00:09]} Nc6 {[%clk 01:32:01]} {[%emt 00:01:49]} 8. c3 {[%clk
01:31:37]} {[%emt 00:01:33]} e6 {[%clk 01:28:32]} {[%emt 00:04:00]} 9. Ne2
{[%clk 01:28:14]} {[%emt 00:03:52]} Nh5 {[%clk 01:28:57]} {[%emt 00:00:05]} 10.
Nd2 {[%clk 01:17:29]} {[%emt 00:11:14]} Qf6 {[%clk 01:28:14]} {[%emt 00:01:13]}
11. Qc2 {[%clk 01:16:34]} {[%emt 00:01:24]} e5 {[%clk 01:23:27]} {[%emt
00:05:19]} 12. f3 {[%clk 01:09:14]} {[%emt 00:07:50]} Rg8 {[%clk 01:21:45]}
{[%emt 00:02:11]} 13. Nf1 {[%clk 00:51:29]} {[%emt 00:18:16]} Be6 {[%clk
01:08:37]} {[%emt 00:13:38]} 14. d5 {[%clk 00:47:14]} {[%emt 00:04:44]} Bxd5
{[%clk 01:08:38]} {[%emt 00:00:29]} 15. Bxf5 {[%clk 00:47:05]} {[%emt
00:00:39]} gxf3 {[%clk 01:07:56]} {[%emt 00:01:14]} 16. gxf3 {[%clk 00:43:30]}
{[%emt 00:04:04]} Bxf3 {[%clk 01:08:12]} {[%emt 00:00:13]} 17. Rg1 {[%clk
00:42:14]} {[%emt 00:01:45]} Ne7 {[%clk 01:05:15]} {[%emt 00:03:28]} 18. Bh3
{[%clk 00:35:49]} {[%emt 00:06:55]} Nxg3 {[%clk 01:03:24]} {[%emt 00:02:23]} 19.
Rxg3 {[%clk 00:21:35]} {[%emt 00:14:43]} Qxh4 {[%clk 01:02:00]} {[%emt
00:01:54]} 20. Be6 {[%clk 00:17:10]} {[%emt 00:04:55]} Rg7 {[%clk 00:54:24]}
{[%emt 00:08:06]} 21. O-O-O {[%clk 00:16:35]} {[%emt 00:01:05]} Bxe2 {[%clk
00:51:38]} {[%emt 00:03:17]} 22. Rxg7 {[%clk 00:11:29]} {[%emt 00:05:35]} Bxd1
{[%clk 00:50:18]} {[%emt 00:01:51]} 23. Rxe7+ {[%clk 00:10:31]} {[%emt
00:01:27]} Kxe7 {[%clk 00:50:07]} {[%emt 00:00:41]} 24. Qg6 {[%clk 00:09:23]}
{[%emt 00:01:38]} Qf6 {[%clk 00:50:31]} {[%emt 00:00:06]} 0-1

[Event "LM 2019"]
[Site "Linköping, Sweden"]
[Date "2019.02.05"]
[Round "3.2"]
[White "Halvarsson, Peter"]
[Black "Olsson, Simon"]
[Result "0-1"]
[TimeControl "90 min + 30 sec/move"]
[WhiteElo "1905"]
[BlackElo "2128"]

1. e4 {[%clk 01:30:53]} {[%emt 00:00:05]} c6 {[%clk 01:30:51]} {[%emt
00:00:10]} 2. d4 {[%clk 01:31:16]} {[%emt 00:00:07]} d5 {[%clk 01:31:17]}
{[%emt 00:00:04]} 3. Nd2 {[%clk 01:31:40]} {[%emt 00:00:05]} dxe4 {[%clk
01:30:48]} {[%emt 00:00:59]} 4. Nxe4 {[%clk 01:32:03]} {[%emt 00:00:07]} Nd7
{[%clk 01:31:14]} {[%emt 00:00:04]} 5. Bc4 {[%clk 01:32:17]} {[%emt 00:00:17]}
e6 {[%clk 01:30:02]} {[%emt 00:01:42]} 6. Qe2 {[%clk 01:26:11]} {[%emt
00:06:36]} Ngf6 {[%clk 01:29:51]} {[%emt 00:00:40]} 7. Ng5 {[%clk 01:25:43]}
{[%emt 00:00:58]} Nb6 {[%clk 01:27:49]} {[%emt 00:02:32]} 8. Bb3 {[%clk
01:25:33]} {[%emt 00:00:40]} h6 {[%clk 01:22:20]} {[%emt 00:06:00]} 9. N5f3
{[%clk 01:25:55]} {[%emt 00:00:08]} c5 {[%clk 01:22:06]} {[%emt 00:00:45]} 10.
c3 {[%clk 01:25:57]} {[%emt 00:00:27]} Qc7 {[%clk 01:18:18]} {[%emt 00:04:19]}
11. Bd2 {[%clk 01:23:05]} {[%emt 00:03:22]} Bd6 {[%clk 01:10:46]} {[%emt
00:08:02]} 12. Ne5 {[%clk 01:21:03]} {[%emt 00:02:32]} Bd7 {[%clk 00:59:11]}
{[%emt 00:12:05]} 13. Ngf3 {[%clk 01:13:09]} {[%emt 00:08:24]} Rd8 {[%clk
00:35:31]} {[%emt 00:24:10]} 14. Rc1 {[%clk 00:59:34]} {[%emt 00:14:04]} Bc6
{[%clk 00:34:05]} {[%emt 00:01:57]} 15. Nxc6 {[%clk 00:45:40]} {[%emt
00:14:24]} Qxc6 {[%clk 00:33:50]} {[%emt 00:00:45]} 16. O-O {[%clk 00:44:11]}
{[%emt 00:01:59]} O-O {[%clk 00:31:53]} {[%emt 00:02:27]} 17. Rfe1 {[%clk
00:43:34]} {[%emt 00:01:07]} Nbd5 {[%clk 00:27:05]} {[%emt 00:05:18]} 18. Ne5
{[%clk 00:40:23]} {[%emt 00:03:41]} Qc7 {[%clk 00:27:17]} {[%emt 00:00:18]} 19.
Bc2 {[%clk 00:33:32]} {[%emt 00:07:21]} cxd4 {[%clk 00:25:38]} {[%emt
00:02:09]} 20. cxd4 {[%clk 00:33:35]} {[%emt 00:00:27]} Qb6 {[%clk 00:25:56]}
{[%emt 00:00:12]} 21. Bc3 {[%clk 00:23:00]} {[%emt 00:11:05]} Rc8 {[%clk
00:09:45]} {[%emt 00:16:41]} 22. Bb1 {[%clk 00:22:06]} {[%emt 00:01:23]} Rfd8
{[%clk 00:06:42]} {[%emt 00:03:34]} 23. h3 {[%clk 00:15:59]} {[%emt 00:06:37]}
Bb4 {[%clk 00:05:20]} {[%emt 00:01:52]} 24. Qf3 {[%clk 00:12:53]} {[%emt
00:03:35]} Qa5 {[%clk 00:04:33]} {[%emt 00:01:17]} 25. Bxb4 {[%clk 00:04:10]}
{[%emt 00:09:14]} Qxb4 {[%clk 00:04:56]} {[%emt 00:00:07]} 26. Qe2 {[%clk
00:03:06]} {[%emt 00:01:33]} Rxc1 {[%clk 00:04:12]} {[%emt 00:01:15]} 27. Rxc1
{[%clk 00:03:32]} {[%emt 00:00:04]} Qxd4 {[%clk 00:04:29]} {[%emt 00:00:13]} 28.
Nf3 {[%clk 00:02:42]} {[%emt 00:01:20]} Qb6 {[%clk 00:04:45]} {[%emt 00:00:13]}
29. a3 {[%clk 00:01:29]} {[%emt 00:01:44]} Ne7 {[%clk 00:04:23]} {[%emt
00:00:52]} 30. Qe5 {[%clk 00:00:56]} {[%emt 00:01:03]} Nc6 {[%clk 00:04:29]}
{[%emt 00:00:25]} 31. Qe2 {[%clk 00:00:57]} {[%emt 00:00:29]} Qa5 {[%clk
00:03:00]} {[%emt 00:01:59]} 32. Qe3 {[%clk 00:00:36]} {[%emt 00:00:51]} Qd5
{[%clk 00:02:52]} {[%emt 00:00:38]} 33. Kh2 {[%clk 00:00:40]} {[%emt 00:00:26]}
Qd6+ {[%clk 00:02:35]} {[%emt 00:00:47]} 34. g3 {[%clk 00:00:50]} {[%emt
00:00:20]} e5 {[%clk 00:01:49]} {[%emt 00:01:16]} 35. Ba2 {[%clk 00:00:41]}
{[%emt 00:00:40]} e4 {[%clk 00:01:48]} {[%emt 00:00:31]} 36. Nh4 {[%clk
00:00:37]} {[%emt 00:00:34]} Qd2 {[%clk 00:02:03]} {[%emt 00:00:14]} 37. Nf5
{[%clk 00:00:34]} {[%emt 00:00:33]} Qxe3 {[%clk 00:02:01]} {[%emt 00:00:32]} 38.
Nxe3 {[%clk 00:00:55]} {[%emt 00:00:09]} Rd2 {[%clk 00:02:05]} {[%emt
00:00:26]} 39. Rc2 {[%clk 00:01:15]} {[%emt 00:00:10]} Rxc2 {[%clk 00:02:12]}
{[%emt 00:00:23]} 40. Nxc2 {[%clk 00:01:44]} Kf8 {[%clk 00:01:55]} {[%emt
00:00:47]} 41. Ne3 {[%clk 00:01:20]} {[%emt 00:00:54]} g6 {[%clk 00:01:27]}
{[%emt 00:00:57]} 42. Kg2 {[%clk 00:01:34]} {[%emt 00:00:16]} Ke7 {[%clk
00:01:53]} {[%emt 00:00:05]} 43. g4 {[%clk 00:00:42]} {[%emt 00:01:21]} b6
{[%clk 00:02:00]} {[%emt 00:00:24]} 44. Nd5+ {[%clk 00:00:39]} {[%emt
00:00:33]} Nxd5 {[%clk 00:02:04]} {[%emt 00:00:26]} 45. Bxd5 {[%clk 00:01:08]}
{[%emt 00:00:01]} Ne5 {[%clk 00:02:25]} {[%emt 00:00:09]} 46. b3 {[%clk
00:00:33]} {[%emt 00:01:06]} f5 {[%clk 00:02:37]} {[%emt 00:00:17]} 47. Kg3
{[%clk 00:00:32]} {[%emt 00:00:30]} Nd3 {[%clk 00:02:46]} {[%emt 00:00:21]} 48.
gxf5 {[%clk 00:00:35]} {[%emt 00:00:27]} gxf5 {[%clk 00:03:12]} {[%emt
00:00:03]} 49. Bc4 {[%clk 00:00:40]} {[%emt 00:00:25]} Kf6 {[%clk 00:02:39]}
{[%emt 00:01:03]} 50. f4 {[%clk 00:00:33]} {[%emt 00:00:37]} Nc5 {[%clk
00:01:32]} {[%emt 00:01:38]} 51. Kf2 {[%clk 00:00:38]} {[%emt 00:00:22]} Ne6
{[%clk 00:01:21]} {[%emt 00:00:44]} 52. Ke3 {[%clk 00:00:56]} {[%emt 00:00:12]}
Ke7 {[%clk 00:01:50]} {[%emt 00:00:02]} 53. b4 {[%clk 00:00:34]} {[%emt
00:00:52]} Kd6 {[%clk 00:01:31]} {[%emt 00:00:48]} 54. Bb3 {[%clk 00:00:31]}
{[%emt 00:00:32]} Nc7 {[%clk 00:01:51]} {[%emt 00:00:12]} 55. Bc4 {[%clk
00:00:35]} {[%emt 00:00:27]} Nd5+ {[%clk 00:02:07]} {[%emt 00:00:12]} 56. Kd4
{[%clk 00:00:35]} {[%emt 00:00:31]} Nxf4 {[%clk 00:02:29]} {[%emt 00:00:09]} 57.
h4 {[%clk 00:00:52]} {[%emt 00:00:12]} Ne6+ {[%clk 00:02:45]} {[%emt 00:00:13]}
58. Ke3 {[%clk 00:01:12]} {[%emt 00:00:09]} Ke5 {[%clk 00:03:10]} {[%emt
00:00:07]} 59. h5 {[%clk 00:00:35]} {[%emt 00:01:07]} f4+ {[%clk 00:03:33]}
{[%emt 00:00:07]} 60. Kf2 {[%clk 00:00:59]} {[%emt 00:00:05]} Nd4 {[%clk
00:03:38]} {[%emt 00:00:25]} 61. a4 {[%clk 00:00:52]} {[%emt 00:00:38]} e3+
{[%clk 00:04:01]} {[%emt 00:00:06]} 62. Kg2 {[%clk 00:00:32]} {[%emt 00:00:50]}
Kf5 {[%clk 00:03:52]} {[%emt 00:00:39]} 63. a5 {[%clk 00:00:43]} {[%emt
00:00:19]} bxa5 {[%clk 00:04:12]} {[%emt 00:00:11]} 64. bxa5 {[%clk 00:01:11]}
{[%emt 00:00:01]} Kg4 {[%clk 00:04:33]} {[%emt 00:00:08]} 65. Bf7 {[%clk
00:01:23]} {[%emt 00:00:18]} f3+ {[%clk 00:04:51]} {[%emt 00:00:12]} 66. Kg1
{[%clk 00:01:02]} {[%emt 00:00:51]} Kg3 {[%clk 00:05:13]} {[%emt 00:00:09]} 0-1

[Event "LM 2019"]
[Site "Linköping, Sweden"]
[Date "2019.02.05"]
[Round "3.3"]
[White "Carlsson, Ingvar"]
[Black "Nguyen, Gabriel"]
[Result "0-1"]
[TimeControl "90 min + 30 sec/move"]
[WhiteElo "2115"]
[BlackElo "2034"]

1. e4 {[%clk 01:30:55]} {[%emt 00:00:03]} c5 {[%clk 01:30:57]} {[%emt
00:00:04]} 2. Nc3 {[%clk 01:31:15]} {[%emt 00:00:09]} Nc6 {[%clk 01:31:16]}
{[%emt 00:00:12]} 3. g3 {[%clk 01:30:49]} {[%emt 00:00:55]} g6 {[%clk
01:31:27]} {[%emt 00:00:19]} 4. Bg2 {[%clk 01:31:14]} {[%emt 00:00:04]} Bg7
{[%clk 01:31:53]} {[%emt 00:00:05]} 5. d3 {[%clk 01:31:31]} {[%emt 00:00:13]}
d6 {[%clk 01:32:07]} {[%emt 00:00:17]} 6. f4 {[%clk 01:31:45]} {[%emt
00:00:15]} e5 {[%clk 01:25:32]} {[%emt 00:07:06]} 7. Nf3 {[%clk 01:31:04]}
{[%emt 00:01:10]} Nge7 {[%clk 01:25:22]} {[%emt 00:00:41]} 8. O-O {[%clk
01:29:54]} {[%emt 00:01:39]} O-O {[%clk 01:25:45]} {[%emt 00:00:07]} 9. h3
{[%clk 01:24:02]} {[%emt 00:06:22]} Be6 {[%clk 01:09:30]} {[%emt 00:16:45]} 10.
Kh2 {[%clk 01:05:55]} {[%emt 00:18:36]} h6 {[%clk 01:07:39]} {[%emt 00:02:22]}
11. Be3 {[%clk 00:50:51]} {[%emt 00:15:34]} Kh7 {[%clk 01:01:29]} {[%emt
00:06:40]} 12. Qd2 {[%clk 00:41:30]} {[%emt 00:09:51]} Nd4 {[%clk 00:58:41]}
{[%emt 00:03:18]} 13. Nd1 {[%clk 00:37:05]} {[%emt 00:04:55]} Nxf3+ {[%clk
00:54:46]} {[%emt 00:04:25]} 14. Bxf3 {[%clk 00:35:03]} {[%emt 00:02:32]} Qd7
{[%clk 00:52:31]} {[%emt 00:02:45]} 15. Bg2 {[%clk 00:28:36]} {[%emt 00:06:57]}
Rac8 {[%clk 00:51:33]} {[%emt 00:01:29]} 16. c4 {[%clk 00:24:33]} {[%emt
00:04:33]} a6 {[%clk 00:49:04]} {[%emt 00:02:59]} 17. Nc3 {[%clk 00:22:47]}
{[%emt 00:02:16]} f5 {[%clk 00:25:28]} {[%emt 00:24:06]} 18. Nd5 {[%clk
00:19:16]} {[%emt 00:04:01]} exf4 {[%clk 00:22:06]} {[%emt 00:03:53]} 19. Rxf4
{[%clk 00:14:36]} {[%emt 00:05:09]} g5 {[%clk 00:18:39]} {[%emt 00:03:57]} 20.
Rf3 {[%clk 00:05:00]} {[%emt 00:10:05]} fxe4 {[%clk 00:14:07]} {[%emt
00:05:03]} 21. Rxf8 {[%clk 00:04:03]} {[%emt 00:01:27]} Rxf8 {[%clk 00:14:31]}
{[%emt 00:00:06]} 22. Bxe4+ {[%clk 00:03:46]} {[%emt 00:00:47]} Bf5 {[%clk
00:14:17]} {[%emt 00:00:44]} 23. Bxf5+ {[%clk 00:03:12]} {[%emt 00:01:04]} Nxf5
{[%clk 00:14:16]} {[%emt 00:00:31]} 24. Rf1 {[%clk 00:03:03]} {[%emt 00:00:40]}
Nxe3 {[%clk 00:13:04]} {[%emt 00:01:42]} 25. Rxf8 {[%clk 00:03:24]} {[%emt
00:00:08]} Nxd5 {[%clk 00:13:11]} {[%emt 00:00:23]} 26. Rf1 {[%clk 00:02:08]}
{[%emt 00:01:46]} Ne7 {[%clk 00:11:22]} {[%emt 00:02:19]} 27. Qe2 {[%clk
00:02:14]} {[%emt 00:00:24]} Nc6 {[%clk 00:11:29]} {[%emt 00:00:23]} 28. Qe4+
{[%clk 00:02:14]} {[%emt 00:00:30]} Kh8 {[%clk 00:11:47]} {[%emt 00:00:12]} 29.
Qd5 {[%clk 00:01:45]} {[%emt 00:00:59]} Ne5 {[%clk 00:12:06]} {[%emt 00:00:11]}
30. d4 {[%clk 00:01:21]} {[%emt 00:00:54]} cxd4 {[%clk 00:12:22]} {[%emt
00:00:13]} 31. b4 {[%clk 00:00:43]} {[%emt 00:01:08]} Qc6 {[%clk 00:11:44]}
{[%emt 00:01:07]} 32. Qxc6 {[%clk 00:00:32]} {[%emt 00:00:42]} bxc6 {[%clk
00:11:50]} {[%emt 00:00:24]} 33. c5 {[%clk 00:00:37]} {[%emt 00:00:24]} dxc5
{[%clk 00:11:30]} {[%emt 00:00:50]} 34. bxc5 {[%clk 00:01:05]} {[%emt
00:00:03]} d3 {[%clk 00:11:42]} {[%emt 00:00:18]} 35. Kg2 {[%clk 00:01:24]}
{[%emt 00:00:11]} Nc4 {[%clk 00:11:44]} {[%emt 00:00:28]} 36. Rb1 {[%clk
00:01:13]} {[%emt 00:00:41]} Bd4 {[%clk 00:10:46]} {[%emt 00:01:27]} 37. Rb8+
{[%clk 00:01:19]} {[%emt 00:00:24]} Kg7 {[%clk 00:11:12]} {[%emt 00:00:04]} 38.
Rd8 {[%clk 00:01:45]} {[%emt 00:00:04]} Ne3+ {[%clk 00:11:33]} {[%emt
00:00:09]} 39. Kf2 {[%clk 00:01:38]} {[%emt 00:00:37]} d2 {[%clk 00:10:10]}
{[%emt 00:01:53]} 40. Rxd4 {[%clk 00:01:56]} {[%emt 00:00:12]} d1=Q {[%clk
00:10:35]} {[%emt 00:00:06]} 0-1

[Event "LM 2019"]
[Site "Linköping, Sweden"]
[Date "2019.02.05"]
[Round "3.4"]
[White "Nörager, Mattias"]
[Black "Uvhagen, Lennart"]
[Result "1/2-1/2"]
[TimeControl "90 min + 30 sec/move"]
[WhiteElo "1764"]
[BlackElo "1862"]

1. f4 {[%clk 01:30:37]} {[%emt 00:00:22]} b5 {[%clk 01:30:24]} {[%emt
00:00:37]} 2. a4 {[%clk 01:29:27]} {[%emt 00:01:40]} b4 {[%clk 01:30:43]}
{[%emt 00:00:12]} 3. Nf3 {[%clk 01:28:37]} {[%emt 00:01:19]} Nf6 {[%clk
01:30:44]} {[%emt 00:00:29]} 4. e3 {[%clk 01:28:05]} {[%emt 00:01:02]} Bb7
{[%clk 01:30:54]} {[%emt 00:00:20]} 5. c4 {[%clk 01:27:27]} {[%emt 00:01:07]}
e6 {[%clk 01:27:46]} {[%emt 00:03:38]} 6. Be2 {[%clk 01:27:20]} {[%emt
00:00:37]} c5 {[%clk 01:26:52]} {[%emt 00:01:25]} 7. O-O {[%clk 01:26:56]}
{[%emt 00:00:53]} Be7 {[%clk 01:24:06]} {[%emt 00:03:16]} 8. d3 {[%clk
01:26:19]} {[%emt 00:01:07]} d5 {[%clk 01:22:38]} {[%emt 00:01:59]} 9. Nbd2
{[%clk 01:20:03]} {[%emt 00:06:45]} Nc6 {[%clk 01:21:32]} {[%emt 00:01:36]} 10.
Nb3 {[%clk 01:18:55]} {[%emt 00:01:38]} dxc4 {[%clk 01:14:54]} {[%emt
00:07:09]} 11. dxc4 {[%clk 01:18:44]} {[%emt 00:00:40]} O-O {[%clk 01:14:03]}
{[%emt 00:01:22]} 12. Qc2 {[%clk 01:18:36]} {[%emt 00:00:37]} Qc7 {[%clk
01:12:59]} {[%emt 00:01:34]} 13. Bd2 {[%clk 01:13:10]} {[%emt 00:05:57]} Rfd8
{[%clk 01:09:43]} {[%emt 00:03:47]} 14. Be1 {[%clk 01:11:06]} {[%emt 00:02:32]}
e5 {[%clk 00:50:38]} {[%emt 00:19:36]} 15. Bg3 {[%clk 01:09:16]} {[%emt
00:02:20]} exf4 {[%clk 00:41:30]} {[%emt 00:09:39]} 16. Bxf4 {[%clk 01:06:45]}
{[%emt 00:03:00]} Bd6 {[%clk 00:39:03]} {[%emt 00:02:57]} 17. Bxd6 {[%clk
01:06:02]} {[%emt 00:01:13]} Qxd6 {[%clk 00:39:23]} {[%emt 00:00:10]} 18. Qf5
{[%clk 01:06:25]} {[%emt 00:00:07]} Re8 {[%clk 00:21:31]} {[%emt 00:18:23]} 19.
Qxc5 {[%clk 01:04:01]} {[%emt 00:02:53]} Qe6 {[%clk 00:21:58]} {[%emt
00:00:04]} 20. Rae1 {[%clk 00:56:48]} {[%emt 00:07:43]} Qxe3+ {[%clk 00:22:24]}
{[%emt 00:00:03]} 21. Qxe3 {[%clk 00:56:56]} {[%emt 00:00:23]} Rxe3 {[%clk
00:22:53]} {[%emt 00:00:02]} 22. Nc5 {[%clk 00:56:58]} {[%emt 00:00:27]} Rae8
{[%clk 00:21:05]} {[%emt 00:02:17]} 23. Bd1 {[%clk 00:53:40]} {[%emt 00:03:48]}
Bc8 {[%clk 00:21:17]} {[%emt 00:00:18]} 1/2-1/2

[Event "LM 2019"]
[Site "Linköping, Sweden"]
[Date "2019.02.05"]
[Round "3.5"]
[White "Arvidsson, Erik"]
[Black "Sahlström, Alex"]
[Result "1-0"]
[TimeControl "90 min + 30 sec/move"]
[WhiteElo "1903"]
[BlackElo "1660"]

1. b3 {[%clk 01:30:56]} {[%emt 00:00:03]} d5 {[%clk 01:30:53]} {[%emt
00:00:07]} 2. Bb2 {[%clk 01:31:21]} {[%emt 00:00:06]} Bg4 {[%clk 01:31:18]}
{[%emt 00:00:05]} 3. Nf3 {[%clk 01:30:50]} {[%emt 00:01:01]} Bxf3 {[%clk
01:31:24]} {[%emt 00:00:24]} 4. exf3 {[%clk 01:29:58]} {[%emt 00:01:23]} Nf6
{[%clk 01:31:45]} {[%emt 00:00:09]} 5. Nc3 {[%clk 01:29:59]} {[%emt 00:00:29]}
g6 {[%clk 01:30:41]} {[%emt 00:01:33]} 6. f4 {[%clk 01:26:44]} {[%emt
00:03:45]} e6 {[%clk 01:28:58]} {[%emt 00:02:13]} 7. Qf3 {[%clk 01:25:04]}
{[%emt 00:02:09]} Bg7 {[%clk 01:23:24]} {[%emt 00:06:05]} 8. O-O-O {[%clk
01:24:36]} {[%emt 00:00:58]} O-O {[%clk 01:21:08]} {[%emt 00:02:46]} 9. g4
{[%clk 01:21:28]} {[%emt 00:03:38]} c5 {[%clk 01:19:06]} {[%emt 00:02:32]} 10.
Ne2 {[%clk 01:09:34]} {[%emt 00:12:23]} Qa5 {[%clk 01:15:23]} {[%emt 00:04:13]}
11. Kb1 {[%clk 01:08:26]} {[%emt 00:01:38]} Ne4 {[%clk 01:10:38]} {[%emt
00:05:15]} 12. Bxg7 {[%clk 01:06:51]} {[%emt 00:02:05]} Kxg7 {[%clk 01:05:31]}
{[%emt 00:05:37]} 13. Nc3 {[%clk 01:02:03]} {[%emt 00:05:19]} Nxc3+ {[%clk
01:03:50]} {[%emt 00:02:10]} 14. Qxc3+ {[%clk 00:59:20]} {[%emt 00:03:13]} Qxc3
{[%clk 01:04:08]} {[%emt 00:00:12]} 15. dxc3 {[%clk 00:59:39]} {[%emt
00:00:11]} Nc6 {[%clk 01:02:22]} {[%emt 00:02:15]} 16. Be2 {[%clk 00:55:27]}
{[%emt 00:04:43]} Rab8 {[%clk 00:46:43]} {[%emt 00:16:09]} 17. h4 {[%clk
00:54:58]} {[%emt 00:00:58]} b5 {[%clk 00:45:42]} {[%emt 00:01:32]} 18. Rh3
{[%clk 00:51:41]} {[%emt 00:03:46]} c4 {[%clk 00:43:32]} {[%emt 00:02:40]} 19.
h5 {[%clk 00:49:29]} {[%emt 00:02:42]} a5 {[%clk 00:40:14]} {[%emt 00:03:49]}
20. Rdh1 {[%clk 00:49:23]} {[%emt 00:00:36]} Kf6 {[%clk 00:24:24]} {[%emt
00:16:19]} 21. hxg6 {[%clk 00:43:06]} {[%emt 00:06:47]} hxg6 {[%clk 00:24:32]}
{[%emt 00:00:22]} 22. Bf3 {[%clk 00:41:15]} {[%emt 00:02:20]} b4 {[%clk
00:23:01]} {[%emt 00:02:02]} 23. Kb2 {[%clk 00:38:12]} {[%emt 00:03:33]} Rfc8
{[%clk 00:18:27]} {[%emt 00:05:04]} 24. Bg2 {[%clk 00:31:54]} {[%emt 00:06:48]}
bxc3+ {[%clk 00:17:11]} {[%emt 00:01:46]} 25. Rxc3 {[%clk 00:31:06]} {[%emt
00:01:17]} cxb3 {[%clk 00:15:57]} {[%emt 00:01:45]} 26. cxb3 {[%clk 00:30:46]}
{[%emt 00:00:50]} Nb4 {[%clk 00:15:55]} {[%emt 00:00:32]} 27. Rhc1 {[%clk
00:30:01]} {[%emt 00:01:15]} Rxc3 {[%clk 00:14:50]} {[%emt 00:01:35]} 28. Rxc3
{[%clk 00:30:27]} {[%emt 00:00:03]} Rb5 {[%clk 00:15:01]} {[%emt 00:00:20]} 29.
Bf1 {[%clk 00:29:48]} {[%emt 00:01:09]} Rb6 {[%clk 00:09:09]} {[%emt 00:06:22]}
30. Rc5 {[%clk 00:25:57]} {[%emt 00:04:20]} a4 {[%clk 00:09:16]} {[%emt
00:00:25]} 31. a3 {[%clk 00:22:31]} {[%emt 00:03:56]} Nd3+ {[%clk 00:05:05]}
{[%emt 00:04:40]} 32. Bxd3 {[%clk 00:22:47]} {[%emt 00:00:14]} Rxb3+ {[%clk
00:05:29]} {[%emt 00:00:06]} 33. Kc2 {[%clk 00:22:50]} {[%emt 00:00:28]} Rxa3
{[%clk 00:05:52]} {[%emt 00:00:06]} 34. Kd2 {[%clk 00:14:49]} {[%emt 00:08:31]}
Ra2+ {[%clk 00:03:10]} {[%emt 00:03:13]} 35. Bc2 {[%clk 00:15:02]} {[%emt
00:00:16]} Ra3 {[%clk 00:01:01]} {[%emt 00:02:39]} 36. Bd3 {[%clk 00:12:04]}
{[%emt 00:03:28]} Ra2+ {[%clk 00:00:58]} {[%emt 00:00:34]} 37. Ke3 {[%clk
00:12:16]} {[%emt 00:00:18]} d4+ {[%clk 00:00:31]} {[%emt 00:00:57]} 38. Kf3
{[%clk 00:10:54]} {[%emt 00:01:52]} a3 {[%clk 00:00:34]} {[%emt 00:00:28]} 39.
Ra5 {[%clk 00:11:01]} {[%emt 00:00:23]} Ra1 {[%clk 00:00:33]} {[%emt 00:00:31]}
40. Ke4 {[%clk 00:09:24]} {[%emt 00:02:05]} Ra2 {[%clk 00:00:33]} {[%emt
00:00:31]} 41. f3 {[%clk 00:09:40]} {[%emt 00:00:14]} Kg7 {[%clk 00:00:32]}
{[%emt 00:00:31]} 42. Kxd4 {[%clk 00:09:40]} {[%emt 00:00:30]} f5 {[%clk
00:00:32]} {[%emt 00:00:31]} 43. g5 {[%clk 00:09:52]} {[%emt 00:00:17]} Rf2
{[%clk 00:00:31]} {[%emt 00:00:31]} 44. Ke3 {[%clk 00:10:03]} {[%emt 00:00:19]}
Ra2 {[%clk 00:00:49]} {[%emt 00:00:12]} 45. Bc4 {[%clk 00:08:56]} {[%emt
00:01:37]} Ra1 {[%clk 00:01:11]} {[%emt 00:00:07]} 46. Kd4 {[%clk 00:09:07]}
{[%emt 00:00:18]} Rd1+ {[%clk 00:00:32]} {[%emt 00:01:10]} 47. Kc5 {[%clk
00:09:04]} {[%emt 00:00:32]} Ra1 {[%clk 00:00:32]} {[%emt 00:00:31]} 48. Ra7+
{[%clk 00:09:16]} {[%emt 00:00:18]} 1-0